{"text_format":"3","workbook":"xlsx","n_sheets":5,"sheets":["Общ преглед на партито","Списък на гостите","Храна и напитки","Други основни неща","Схема на сядане по масите"],"not_rendered":{"defined_names":9},"read":"whole","date_system":"1900"}

{"sheet":"Общ преглед на партито","index":0,"n_rows":21,"n_cols":8,"rows_kept":21,"merged":[[6,3,6,4],[6,5,6,6],[9,1,9,2]]}
[]
[]
[null,"Общ преглед на партито"]
[]
[]
[null,"СЪБИТИЕ",null,"РЕЗЮМЕ НА ГОСТИТЕ",{"$nulls":3},{"$f":"\"НЕОТГОВОРИЛИ: \"&Неотговорили","v":"НЕОТГОВОРИЛИ: 2"}]
[null,"75-и рожден ден на баба",null,"ПРЕГЛЕД НА ОТГОВОРИТЕ",null,"ЦЕНА НА ГОСТ",null,"СУМА НА БЮДЖЕТА"]
[{"$nulls":3},"Потвърдили гости","Общо потвърдили","Храна","Други","Общо"]
[null,"ДАТА",null,"Възрастни",{"$f":"SUMIF(Маса_за_гости[ЩЕ ПРИСЪСТВА?],\"=Да\",Маса_за_гости[ВЪЗРАСТНИ])","v":26},{"$f":"Маса_за_храна[[#Totals],[ЦЕНА НА ВЪЗРАСТЕН]]","v":{"v":12.690089084110037,"d":"12.69 лв."}},{"$f":"Основни_разходи_за_гост","v":{"v":18.695652173913043,"d":"18.70 лв."}},{"$f":"(Резюме_на_присъстващи[[#This Row],[Храна]]+Резюме_на_присъстващи[[#This Row],[Други]])*Общо_възрастни","v":{"v":816.0292727086002,"d":"816.03 лв."}}]
[null,"14 Юни, 2011",null,"Деца",{"$f":"SUMIF(Маса_за_гости[ЩЕ ПРИСЪСТВА?],\"=Да\",Маса_за_гости[ДЕЦА])","v":20},{"$f":"Маса_за_храна[[#Totals],[ЦЕНА НА ДЕТЕ]]","v":{"v":7.252884190656953,"d":"7.25 лв."}},{"$f":"Основни_разходи_за_гост","v":{"v":18.695652173913043,"d":"18.70 лв."}},{"$f":"(Резюме_на_присъстващи[[#This Row],[Храна]]+Резюме_на_присъстващи[[#This Row],[Други]])*Общо_деца","v":{"v":518.9707272914,"d":"518.97 лв."}}]
[{"$nulls":3},"Общо",{"$f":"SUBTOTAL(109,Резюме_на_присъстващи[Общо потвърдили])","v":46},{"$f":"\"Ср.    \"&TEXT(SUBTOTAL(101,Резюме_на_присъстващи[Храна]),\"# ##0,00 лв.\")","v":"Ср.    9,97 лв."},{"$f":"\"Ср.     \"&TEXT(SUBTOTAL(101,Резюме_на_присъстващи[Други]),\"# ##0,00 лв.\")","v":"Ср.     18,70 лв."},{"$f":"SUBTOTAL(109,Резюме_на_присъстващи[Общо])","v":{"v":1335,"d":"1,335.00 лв."}}]
[null,"ЧАС"]
[null,"От 14 ч до 16 ч"]
[]
[null,"МЯСТО",null,"РЕЗЮМЕ НА БЮДЖЕТА"]
[null,"Къщата на леля Ким",null,"ПЕРО","БРОЙ","СУМА НА БЮДЖЕТА","ОБЩА ЦЕНА","РАЗЛИКА"]
[{"$nulls":3},"Храна и напитки",{"$f":"COUNTA(Маса_за_храна[ЕЛЕМЕНТ ОТ ХРАНА И НАПИТКИ])","v":18},{"v":500,"d":"500.00 лв."},{"$f":"Маса_за_храна[[#Totals],[ОБЩА ЦЕНА]]","v":{"v":475,"d":"475.00 лв."}},{"$f":"Резюме_на_бюджет[[#This Row],[СУМА НА БЮДЖЕТА]]-Резюме_на_бюджет[[#This Row],[ОБЩА ЦЕНА]]","v":{"v":25,"d":"25.00 лв."}}]
[{"$nulls":3},{"$f":"Заглавка_таблица1","v":"Прибори и продукти"},{"$f":"COUNTA(Бюджет_маса1[Прибори и продукти])","v":7},{"v":400,"d":"400.00 лв."},{"$f":"Бюджет_маса1[[#Totals],[Цена]]","v":{"v":400,"d":"400.00 лв."}},{"$f":"Резюме_на_бюджет[[#This Row],[СУМА НА БЮДЖЕТА]]-Резюме_на_бюджет[[#This Row],[ОБЩА ЦЕНА]]","v":{"v":0,"d":"0.00 лв."}}]
[{"$nulls":3},{"$f":"Заглавка_таблица2","v":"Украса"},{"$f":"COUNTA(Бюджет_маса2[Украса])","v":4},{"v":150,"d":"150.00 лв."},{"$f":"Бюджет_маса2[[#Totals],[Цена]]","v":{"v":175,"d":"175.00 лв."}},{"$f":"Резюме_на_бюджет[[#This Row],[СУМА НА БЮДЖЕТА]]-Резюме_на_бюджет[[#This Row],[ОБЩА ЦЕНА]]","v":{"v":-25,"d":"-25.00 лв."}}]
[{"$nulls":3},{"$f":"Заглавка_таблица3","v":"Други"},{"$f":"COUNTA(Бюджет_маса3[Други])","v":4},{"v":300,"d":"300.00 лв."},{"$f":"Бюджет_маса3[[#Totals],[Цена]]","v":{"v":285,"d":"285.00 лв."}},{"$f":"Резюме_на_бюджет[[#This Row],[СУМА НА БЮДЖЕТА]]-Резюме_на_бюджет[[#This Row],[ОБЩА ЦЕНА]]","v":{"v":15,"d":"15.00 лв."}}]
[{"$nulls":3},"Общо",{"$f":"SUBTOTAL(109,Резюме_на_бюджет[БРОЙ])","v":33},{"$f":"SUBTOTAL(109,Резюме_на_бюджет[СУМА НА БЮДЖЕТА])","v":{"v":1350,"d":"1,350.00 лв."}},{"$f":"SUBTOTAL(109,Резюме_на_бюджет[ОБЩА ЦЕНА])","v":{"v":1335,"d":"1,335.00 лв."}},{"$f":"SUBTOTAL(109,Резюме_на_бюджет[РАЗЛИКА])","v":{"v":15,"d":"15.00 лв."}}]

{"sheet":"Списък на гостите","index":1,"n_rows":22,"n_cols":12,"rows_kept":22}
[]
[]
[null,"Списък на гостите"]
[]
[]
[]
[null,"ИМЕ","АДРЕС","ГРАД","ОБЛАСТ","ПОЩЕНСКИ КОД","ТЕЛЕФОН","ИМЕЙЛ","ЩЕ ПРИСЪСТВА?","ДЕЦА","ВЪЗРАСТНИ","ОБЩО"]
[null,"Семейство 1","Адрес 1","Град 1","Област 1","Пощенски код 1","Телефон 1","Имейл 1","Не",2,2,{"$f":"SUM(Маса_за_гости[[#This Row],[ДЕЦА]:[ВЪЗРАСТНИ]])","v":4}]
[null,"Семейство 2","Адрес 2","Град 2","Област 2","Пощенски код 2","Телефон 2","Имейл 2","Да",1,1,{"$f":"SUM(Маса_за_гости[[#This Row],[ДЕЦА]:[ВЪЗРАСТНИ]])","v":2}]
[null,"Семейство 3","Адрес 3","Град 3","Област 3","Пощенски код 3","Телефон 3","Имейл 3","Да",3,3,{"$f":"SUM(Маса_за_гости[[#This Row],[ДЕЦА]:[ВЪЗРАСТНИ]])","v":6}]
[null,"Семейство 4","Адрес 4","Град 4","Област 4","Пощенски код 4","Телефон 4","Имейл 4",null,null,2,{"$f":"SUM(Маса_за_гости[[#This Row],[ДЕЦА]:[ВЪЗРАСТНИ]])","v":2}]
[null,"Семейство 5","Адрес 5","Град 5","Област 5","Пощенски код 5","Телефон 5","Имейл 5","Да",4,3,{"$f":"SUM(Маса_за_гости[[#This Row],[ДЕЦА]:[ВЪЗРАСТНИ]])","v":7}]
[null,"Семейство 6","Адрес 6","Град 6","Област 6","Пощенски код 6","Телефон 6","Имейл 6","Да",2,2,{"$f":"SUM(Маса_за_гости[[#This Row],[ДЕЦА]:[ВЪЗРАСТНИ]])","v":4}]
[null,"Семейство 7","Адрес 7","Град 7","Област 7","Пощенски код 7","Телефон 7","Имейл 7","Да",1,4,{"$f":"SUM(Маса_за_гости[[#This Row],[ДЕЦА]:[ВЪЗРАСТНИ]])","v":5}]
[null,"Семейство 8","Адрес 8","Град 8","Област 8","Пощенски код 8","Телефон 8","Имейл 8","Не",5,3,{"$f":"SUM(Маса_за_гости[[#This Row],[ДЕЦА]:[ВЪЗРАСТНИ]])","v":8}]
[null,"Семейство 9","Адрес 9","Град 9","Област 9","Пощенски код 9","Телефон 9","Имейл 9","Да",3,2,{"$f":"SUM(Маса_за_гости[[#This Row],[ДЕЦА]:[ВЪЗРАСТНИ]])","v":5}]
[null,"Семейство 10","Адрес 10","Град 10","Област 10","Пощенски код 10","Телефон 10","Имейл 10","Да",null,4,{"$f":"SUM(Маса_за_гости[[#This Row],[ДЕЦА]:[ВЪЗРАСТНИ]])","v":4}]
[null,"Семейство 11","Адрес 11","Град 11","Област 11","Пощенски код 11","Телефон 11","Имейл 11","Да",3,5,{"$f":"SUM(Маса_за_гости[[#This Row],[ДЕЦА]:[ВЪЗРАСТНИ]])","v":8}]
[null,"Семейство 12","Адрес 12","Град 12","Област 12","Пощенски код 12","Телефон 12","Имейл 12","Не",2,3,{"$f":"SUM(Маса_за_гости[[#This Row],[ДЕЦА]:[ВЪЗРАСТНИ]])","v":5}]
[null,"Семейство 13","Адрес 13","Град 13","Област 13","Пощенски код 13","Телефон 13","Имейл 13","Да",3,2,{"$f":"SUM(Маса_за_гости[[#This Row],[ДЕЦА]:[ВЪЗРАСТНИ]])","v":5}]
[null,"Семейство 14","Адрес 14","Град 14","Област 14","Пощенски код 14","Телефон 14","Имейл 14","Не",null,1,{"$f":"SUM(Маса_за_гости[[#This Row],[ДЕЦА]:[ВЪЗРАСТНИ]])","v":1}]
[null,"Семейство 15","Адрес 15","Град 15","Област 15","Пощенски код 15","Телефон 15","Имейл 15",null,null,2,{"$f":"SUM(Маса_за_гости[[#This Row],[ДЕЦА]:[ВЪЗРАСТНИ]])","v":2}]

{"sheet":"Храна и напитки","index":2,"n_rows":25,"n_cols":10,"rows_kept":25}
[]
[]
[null,"Храна и напитки"]
[]
[null,"Въведете цена и приблизителен брой куверти, за да изчислите общо частите и цената на куверт на базата на присъстващите"]
[null,"ЕЛЕМЕНТ ОТ ХРАНА И НАПИТКИ","ОБЩА ЦЕНА","ПОРЦИЯ ЗА ДЕТЕ","ПОРЦИЯ ЗА ВЪЗРАСТЕН","ОБЩО ПОРЦИИ","ЦЕНА НА ПОРЦИЯ","ЦЕНА НА ДЕТЕ","ЦЕНА НА ВЪЗРАСТЕН","БЕЛЕЖКИ"]
[null,"Газирани напитки",{"v":15,"d":"15.00 лв."},0.5,2,{"$f":"(Маса_за_храна[[#This Row],[ПОРЦИЯ ЗА ДЕТЕ]]*Общо_деца)+(Маса_за_храна[[#This Row],[ПОРЦИЯ ЗА ВЪЗРАСТЕН]]*Общо_възрастни)","v":62},{"$f":"IFERROR(Маса_за_храна[[#This Row],[ОБЩА ЦЕНА]]/Маса_за_храна[[#This Row],[ОБЩО ПОРЦИИ]],\"\")","v":{"v":0.24193548387096775,"d":"0.24 лв."}},{"$f":"IFERROR(Маса_за_храна[[#This Row],[ЦЕНА НА ПОРЦИЯ]]*Маса_за_храна[[#This Row],[ПОРЦИЯ ЗА ДЕТЕ]],\"\")","v":{"v":0.12096774193548387,"d":"0.12 лв."}},{"$f":"IFERROR(Маса_за_храна[[#This Row],[ЦЕНА НА ПОРЦИЯ]]*Маса_за_храна[[#This Row],[ПОРЦИЯ ЗА ВЪЗРАСТЕН]],\"\")","v":{"v":0.4838709677419355,"d":"0.48 лв."}},"2-литрови бутилки"]
[null,"Кутии сок",{"v":15,"d":"15.00 лв."},2,0,{"$f":"(Маса_за_храна[[#This Row],[ПОРЦИЯ ЗА ДЕТЕ]]*Общо_деца)+(Маса_за_храна[[#This Row],[ПОРЦИЯ ЗА ВЪЗРАСТЕН]]*Общо_възрастни)","v":40},{"$f":"IFERROR(Маса_за_храна[[#This Row],[ОБЩА ЦЕНА]]/Маса_за_храна[[#This Row],[ОБЩО ПОРЦИИ]],\"\")","v":{"v":0.375,"d":"0.38 лв."}},{"$f":"IFERROR(Маса_за_храна[[#This Row],[ЦЕНА НА ПОРЦИЯ]]*Маса_за_храна[[#This Row],[ПОРЦИЯ ЗА ДЕТЕ]],\"\")","v":{"v":0.75,"d":"0.75 лв."}},{"$f":"IFERROR(Маса_за_храна[[#This Row],[ЦЕНА НА ПОРЦИЯ]]*Маса_за_храна[[#This Row],[ПОРЦИЯ ЗА ВЪЗРАСТЕН]],\"\")","v":{"v":0,"d":"0.00 лв."}},"Ябълки и бяло грозде"]
[null,"Вино",{"v":50,"d":"50.00 лв."},0,2,{"$f":"(Маса_за_храна[[#This Row],[ПОРЦИЯ ЗА ДЕТЕ]]*Общо_деца)+(Маса_за_храна[[#This Row],[ПОРЦИЯ ЗА ВЪЗРАСТЕН]]*Общо_възрастни)","v":52},{"$f":"IFERROR(Маса_за_храна[[#This Row],[ОБЩА ЦЕНА]]/Маса_за_храна[[#This Row],[ОБЩО ПОРЦИИ]],\"\")","v":{"v":0.9615384615384616,"d":"0.96 лв."}},{"$f":"IFERROR(Маса_за_храна[[#This Row],[ЦЕНА НА ПОРЦИЯ]]*Маса_за_храна[[#This Row],[ПОРЦИЯ ЗА ДЕТЕ]],\"\")","v":{"v":0,"d":"0.00 лв."}},{"$f":"IFERROR(Маса_за_храна[[#This Row],[ЦЕНА НА ПОРЦИЯ]]*Маса_за_храна[[#This Row],[ПОРЦИЯ ЗА ВЪЗРАСТЕН]],\"\")","v":{"v":1.9230769230769231,"d":"1.92 лв."}}]
[null,"Торта",{"v":75,"d":"75.00 лв."},1,1,{"$f":"(Маса_за_храна[[#This Row],[ПОРЦИЯ ЗА ДЕТЕ]]*Общо_деца)+(Маса_за_храна[[#This Row],[ПОРЦИЯ ЗА ВЪЗРАСТЕН]]*Общо_възрастни)","v":46},{"$f":"IFERROR(Маса_за_храна[[#This Row],[ОБЩА ЦЕНА]]/Маса_за_храна[[#This Row],[ОБЩО ПОРЦИИ]],\"\")","v":{"v":1.6304347826086956,"d":"1.63 лв."}},{"$f":"IFERROR(Маса_за_храна[[#This Row],[ЦЕНА НА ПОРЦИЯ]]*Маса_за_храна[[#This Row],[ПОРЦИЯ ЗА ДЕТЕ]],\"\")","v":{"v":1.6304347826086956,"d":"1.63 лв."}},{"$f":"IFERROR(Маса_за_храна[[#This Row],[ЦЕНА НА ПОРЦИЯ]]*Маса_за_храна[[#This Row],[ПОРЦИЯ ЗА ВЪЗРАСТЕН]],\"\")","v":{"v":1.6304347826086956,"d":"1.63 лв."}},"Да се поръчат от местната фурна"]
[null,"Сладолед",{"v":20,"d":"20.00 лв."},1,1.5,{"$f":"(Маса_за_храна[[#This Row],[ПОРЦИЯ ЗА ДЕТЕ]]*Общо_деца)+(Маса_за_храна[[#This Row],[ПОРЦИЯ ЗА ВЪЗРАСТЕН]]*Общо_възрастни)","v":59},{"$f":"IFERROR(Маса_за_храна[[#This Row],[ОБЩА ЦЕНА]]/Маса_за_храна[[#This Row],[ОБЩО ПОРЦИИ]],\"\")","v":{"v":0.3389830508474576,"d":"0.34 лв."}},{"$f":"IFERROR(Маса_за_храна[[#This Row],[ЦЕНА НА ПОРЦИЯ]]*Маса_за_храна[[#This Row],[ПОРЦИЯ ЗА ДЕТЕ]],\"\")","v":{"v":0.3389830508474576,"d":"0.34 лв."}},{"$f":"IFERROR(Маса_за_храна[[#This Row],[ЦЕНА НА ПОРЦИЯ]]*Маса_за_храна[[#This Row],[ПОРЦИЯ ЗА ВЪЗРАСТЕН]],\"\")","v":{"v":0.5084745762711864,"d":"0.51 лв."}}]
[null,"Купички за пудинг",{"v":15,"d":"15.00 лв."},1,0,{"$f":"(Маса_за_храна[[#This Row],[ПОРЦИЯ ЗА ДЕТЕ]]*Общо_деца)+(Маса_за_храна[[#This Row],[ПОРЦИЯ ЗА ВЪЗРАСТЕН]]*Общо_възрастни)","v":20},{"$f":"IFERROR(Маса_за_храна[[#This Row],[ОБЩА ЦЕНА]]/Маса_за_храна[[#This Row],[ОБЩО ПОРЦИИ]],\"\")","v":{"v":0.75,"d":"0.75 лв."}},{"$f":"IFERROR(Маса_за_храна[[#This Row],[ЦЕНА НА ПОРЦИЯ]]*Маса_за_храна[[#This Row],[ПОРЦИЯ ЗА ДЕТЕ]],\"\")","v":{"v":0.75,"d":"0.75 лв."}},{"$f":"IFERROR(Маса_за_храна[[#This Row],[ЦЕНА НА ПОРЦИЯ]]*Маса_за_храна[[#This Row],[ПОРЦИЯ ЗА ВЪЗРАСТЕН]],\"\")","v":{"v":0,"d":"0.00 лв."}},"Купуване на пакетирани чаши: ванилия и шоколад"]
[null,"Пълнени гъби",{"v":32,"d":"32.00 лв."},1,2,{"$f":"(Маса_за_храна[[#This Row],[ПОРЦИЯ ЗА ДЕТЕ]]*Общо_деца)+(Маса_за_храна[[#This Row],[ПОРЦИЯ ЗА ВЪЗРАСТЕН]]*Общо_възрастни)","v":72},{"$f":"IFERROR(Маса_за_храна[[#This Row],[ОБЩА ЦЕНА]]/Маса_за_храна[[#This Row],[ОБЩО ПОРЦИИ]],\"\")","v":{"v":0.4444444444444444,"d":"0.44 лв."}},{"$f":"IFERROR(Маса_за_храна[[#This Row],[ЦЕНА НА ПОРЦИЯ]]*Маса_за_храна[[#This Row],[ПОРЦИЯ ЗА ДЕТЕ]],\"\")","v":{"v":0.4444444444444444,"d":"0.44 лв."}},{"$f":"IFERROR(Маса_за_храна[[#This Row],[ЦЕНА НА ПОРЦИЯ]]*Маса_за_храна[[#This Row],[ПОРЦИЯ ЗА ВЪЗРАСТЕН]],\"\")","v":{"v":0.8888888888888888,"d":"0.89 лв."}},"Гъби, пълнени със сирене крема и колбаси"]
[null,"Брускети",{"v":22,"d":"22.00 лв."},0,3,{"$f":"(Маса_за_храна[[#This Row],[ПОРЦИЯ ЗА ДЕТЕ]]*Общо_деца)+(Маса_за_храна[[#This Row],[ПОРЦИЯ ЗА ВЪЗРАСТЕН]]*Общо_възрастни)","v":78},{"$f":"IFERROR(Маса_за_храна[[#This Row],[ОБЩА ЦЕНА]]/Маса_за_храна[[#This Row],[ОБЩО ПОРЦИИ]],\"\")","v":{"v":0.28205128205128205,"d":"0.28 лв."}},{"$f":"IFERROR(Маса_за_храна[[#This Row],[ЦЕНА НА ПОРЦИЯ]]*Маса_за_храна[[#This Row],[ПОРЦИЯ ЗА ДЕТЕ]],\"\")","v":{"v":0,"d":"0.00 лв."}},{"$f":"IFERROR(Маса_за_храна[[#This Row],[ЦЕНА НА ПОРЦИЯ]]*Маса_за_храна[[#This Row],[ПОРЦИЯ ЗА ВЪЗРАСТЕН]],\"\")","v":{"v":0.8461538461538461,"d":"0.85 лв."}},"Домати с босилек"]
[null,"Пушена сьомга",{"v":50,"d":"50.00 лв."},1,2,{"$f":"(Маса_за_храна[[#This Row],[ПОРЦИЯ ЗА ДЕТЕ]]*Общо_деца)+(Маса_за_храна[[#This Row],[ПОРЦИЯ ЗА ВЪЗРАСТЕН]]*Общо_възрастни)","v":72},{"$f":"IFERROR(Маса_за_храна[[#This Row],[ОБЩА ЦЕНА]]/Маса_за_храна[[#This Row],[ОБЩО ПОРЦИИ]],\"\")","v":{"v":0.6944444444444444,"d":"0.69 лв."}},{"$f":"IFERROR(Маса_за_храна[[#This Row],[ЦЕНА НА ПОРЦИЯ]]*Маса_за_храна[[#This Row],[ПОРЦИЯ ЗА ДЕТЕ]],\"\")","v":{"v":0.6944444444444444,"d":"0.69 лв."}},{"$f":"IFERROR(Маса_за_храна[[#This Row],[ЦЕНА НА ПОРЦИЯ]]*Маса_за_храна[[#This Row],[ПОРЦИЯ ЗА ВЪЗРАСТЕН]],\"\")","v":{"v":1.3888888888888888,"d":"1.39 лв."}}]
[null,"Гевречета",{"v":20,"d":"20.00 лв."},1,2,{"$f":"(Маса_за_храна[[#This Row],[ПОРЦИЯ ЗА ДЕТЕ]]*Общо_деца)+(Маса_за_храна[[#This Row],[ПОРЦИЯ ЗА ВЪЗРАСТЕН]]*Общо_възрастни)","v":72},{"$f":"IFERROR(Маса_за_храна[[#This Row],[ОБЩА ЦЕНА]]/Маса_за_храна[[#This Row],[ОБЩО ПОРЦИИ]],\"\")","v":{"v":0.2777777777777778,"d":"0.28 лв."}},{"$f":"IFERROR(Маса_за_храна[[#This Row],[ЦЕНА НА ПОРЦИЯ]]*Маса_за_храна[[#This Row],[ПОРЦИЯ ЗА ДЕТЕ]],\"\")","v":{"v":0.2777777777777778,"d":"0.28 лв."}},{"$f":"IFERROR(Маса_за_храна[[#This Row],[ЦЕНА НА ПОРЦИЯ]]*Маса_за_храна[[#This Row],[ПОРЦИЯ ЗА ВЪЗРАСТЕН]],\"\")","v":{"v":0.5555555555555556,"d":"0.56 лв."}},"4 плика, смесени"]
[null,"Сирене крема",{"v":10,"d":"10.00 лв."},1,2,{"$f":"(Маса_за_храна[[#This Row],[ПОРЦИЯ ЗА ДЕТЕ]]*Общо_деца)+(Маса_за_храна[[#This Row],[ПОРЦИЯ ЗА ВЪЗРАСТЕН]]*Общо_възрастни)","v":72},{"$f":"IFERROR(Маса_за_храна[[#This Row],[ОБЩА ЦЕНА]]/Маса_за_храна[[#This Row],[ОБЩО ПОРЦИИ]],\"\")","v":{"v":0.1388888888888889,"d":"0.14 лв."}},{"$f":"IFERROR(Маса_за_храна[[#This Row],[ЦЕНА НА ПОРЦИЯ]]*Маса_за_храна[[#This Row],[ПОРЦИЯ ЗА ДЕТЕ]],\"\")","v":{"v":0.1388888888888889,"d":"0.14 лв."}},{"$f":"IFERROR(Маса_за_храна[[#This Row],[ЦЕНА НА ПОРЦИЯ]]*Маса_за_храна[[#This Row],[ПОРЦИЯ ЗА ВЪЗРАСТЕН]],\"\")","v":{"v":0.2777777777777778,"d":"0.28 лв."}},"2 големи кофички"]
[null,"Каперси",{"v":12,"d":"12.00 лв."},1,2,{"$f":"(Маса_за_храна[[#This Row],[ПОРЦИЯ ЗА ДЕТЕ]]*Общо_деца)+(Маса_за_храна[[#This Row],[ПОРЦИЯ ЗА ВЪЗРАСТЕН]]*Общо_възрастни)","v":72},{"$f":"IFERROR(Маса_за_храна[[#This Row],[ОБЩА ЦЕНА]]/Маса_за_храна[[#This Row],[ОБЩО ПОРЦИИ]],\"\")","v":{"v":0.16666666666666666,"d":"0.17 лв."}},{"$f":"IFERROR(Маса_за_храна[[#This Row],[ЦЕНА НА ПОРЦИЯ]]*Маса_за_храна[[#This Row],[ПОРЦИЯ ЗА ДЕТЕ]],\"\")","v":{"v":0.16666666666666666,"d":"0.17 лв."}},{"$f":"IFERROR(Маса_за_храна[[#This Row],[ЦЕНА НА ПОРЦИЯ]]*Маса_за_храна[[#This Row],[ПОРЦИЯ ЗА ВЪЗРАСТЕН]],\"\")","v":{"v":0.3333333333333333,"d":"0.33 лв."}},"3 буркана"]
[null,"Пилешки крилца",{"v":45,"d":"45.00 лв."},2,4,{"$f":"(Маса_за_храна[[#This Row],[ПОРЦИЯ ЗА ДЕТЕ]]*Общо_деца)+(Маса_за_храна[[#This Row],[ПОРЦИЯ ЗА ВЪЗРАСТЕН]]*Общо_възрастни)","v":144},{"$f":"IFERROR(Маса_за_храна[[#This Row],[ОБЩА ЦЕНА]]/Маса_за_храна[[#This Row],[ОБЩО ПОРЦИИ]],\"\")","v":{"v":0.3125,"d":"0.31 лв."}},{"$f":"IFERROR(Маса_за_храна[[#This Row],[ЦЕНА НА ПОРЦИЯ]]*Маса_за_храна[[#This Row],[ПОРЦИЯ ЗА ДЕТЕ]],\"\")","v":{"v":0.625,"d":"0.63 лв."}},{"$f":"IFERROR(Маса_за_храна[[#This Row],[ЦЕНА НА ПОРЦИЯ]]*Маса_за_храна[[#This Row],[ПОРЦИЯ ЗА ВЪЗРАСТЕН]],\"\")","v":{"v":1.25,"d":"1.25 лв."}},"Да се купят от местния магазин за крилца"]
[null,"Хумус",{"v":10,"d":"10.00 лв."},4,6,{"$f":"(Маса_за_храна[[#This Row],[ПОРЦИЯ ЗА ДЕТЕ]]*Общо_деца)+(Маса_за_храна[[#This Row],[ПОРЦИЯ ЗА ВЪЗРАСТЕН]]*Общо_възрастни)","v":236},{"$f":"IFERROR(Маса_за_храна[[#This Row],[ОБЩА ЦЕНА]]/Маса_за_храна[[#This Row],[ОБЩО ПОРЦИИ]],\"\")","v":{"v":0.0423728813559322,"d":"0.04 лв."}},{"$f":"IFERROR(Маса_за_храна[[#This Row],[ЦЕНА НА ПОРЦИЯ]]*Маса_за_храна[[#This Row],[ПОРЦИЯ ЗА ДЕТЕ]],\"\")","v":{"v":0.1694915254237288,"d":"0.17 лв."}},{"$f":"IFERROR(Маса_за_храна[[#This Row],[ЦЕНА НА ПОРЦИЯ]]*Маса_за_храна[[#This Row],[ПОРЦИЯ ЗА ВЪЗРАСТЕН]],\"\")","v":{"v":0.2542372881355932,"d":"0.25 лв."}},"Да се приготвят предишната вечер"]
[null,"Настърган пармезан",{"v":14,"d":"14.00 лв."},4,6,{"$f":"(Маса_за_храна[[#This Row],[ПОРЦИЯ ЗА ДЕТЕ]]*Общо_деца)+(Маса_за_храна[[#This Row],[ПОРЦИЯ ЗА ВЪЗРАСТЕН]]*Общо_възрастни)","v":236},{"$f":"IFERROR(Маса_за_храна[[#This Row],[ОБЩА ЦЕНА]]/Маса_за_храна[[#This Row],[ОБЩО ПОРЦИИ]],\"\")","v":{"v":0.059322033898305086,"d":"0.06 лв."}},{"$f":"IFERROR(Маса_за_храна[[#This Row],[ЦЕНА НА ПОРЦИЯ]]*Маса_за_храна[[#This Row],[ПОРЦИЯ ЗА ДЕТЕ]],\"\")","v":{"v":0.23728813559322035,"d":"0.24 лв."}},{"$f":"IFERROR(Маса_за_храна[[#This Row],[ЦЕНА НА ПОРЦИЯ]]*Маса_за_храна[[#This Row],[ПОРЦИЯ ЗА ВЪЗРАСТЕН]],\"\")","v":{"v":0.3559322033898305,"d":"0.36 лв."}},"Да се приготвят предишната вечер"]
[null,"Зеленчуци асорти",{"v":30,"d":"30.00 лв."},4,10,{"$f":"(Маса_за_храна[[#This Row],[ПОРЦИЯ ЗА ДЕТЕ]]*Общо_деца)+(Маса_за_храна[[#This Row],[ПОРЦИЯ ЗА ВЪЗРАСТЕН]]*Общо_възрастни)","v":340},{"$f":"IFERROR(Маса_за_храна[[#This Row],[ОБЩА ЦЕНА]]/Маса_за_храна[[#This Row],[ОБЩО ПОРЦИИ]],\"\")","v":{"v":0.08823529411764706,"d":"0.09 лв."}},{"$f":"IFERROR(Маса_за_храна[[#This Row],[ЦЕНА НА ПОРЦИЯ]]*Маса_за_храна[[#This Row],[ПОРЦИЯ ЗА ДЕТЕ]],\"\")","v":{"v":0.35294117647058826,"d":"0.35 лв."}},{"$f":"IFERROR(Маса_за_храна[[#This Row],[ЦЕНА НА ПОРЦИЯ]]*Маса_за_храна[[#This Row],[ПОРЦИЯ ЗА ВЪЗРАСТЕН]],\"\")","v":{"v":0.8823529411764707,"d":"0.88 лв."}},"Моркови на пръчици, целина, броколи, карфиол, червени и зелени пиперки"]
[null,"Хапки със сирене",{"v":15,"d":"15.00 лв."},5,10,{"$f":"(Маса_за_храна[[#This Row],[ПОРЦИЯ ЗА ДЕТЕ]]*Общо_деца)+(Маса_за_храна[[#This Row],[ПОРЦИЯ ЗА ВЪЗРАСТЕН]]*Общо_възрастни)","v":360},{"$f":"IFERROR(Маса_за_храна[[#This Row],[ОБЩА ЦЕНА]]/Маса_за_храна[[#This Row],[ОБЩО ПОРЦИИ]],\"\")","v":{"v":0.041666666666666664,"d":"0.04 лв."}},{"$f":"IFERROR(Маса_за_храна[[#This Row],[ЦЕНА НА ПОРЦИЯ]]*Маса_за_храна[[#This Row],[ПОРЦИЯ ЗА ДЕТЕ]],\"\")","v":{"v":0.20833333333333331,"d":"0.21 лв."}},{"$f":"IFERROR(Маса_за_храна[[#This Row],[ЦЕНА НА ПОРЦИЯ]]*Маса_за_храна[[#This Row],[ПОРЦИЯ ЗА ВЪЗРАСТЕН]],\"\")","v":{"v":0.41666666666666663,"d":"0.42 лв."}},"Асорти: сирене крема, твърдо сирене с ядки"]
[null,"Крекери",{"v":25,"d":"25.00 лв."},5,10,{"$f":"(Маса_за_храна[[#This Row],[ПОРЦИЯ ЗА ДЕТЕ]]*Общо_деца)+(Маса_за_храна[[#This Row],[ПОРЦИЯ ЗА ВЪЗРАСТЕН]]*Общо_възрастни)","v":360},{"$f":"IFERROR(Маса_за_храна[[#This Row],[ОБЩА ЦЕНА]]/Маса_за_храна[[#This Row],[ОБЩО ПОРЦИИ]],\"\")","v":{"v":0.06944444444444445,"d":"0.07 лв."}},{"$f":"IFERROR(Маса_за_храна[[#This Row],[ЦЕНА НА ПОРЦИЯ]]*Маса_за_храна[[#This Row],[ПОРЦИЯ ЗА ДЕТЕ]],\"\")","v":{"v":0.3472222222222222,"d":"0.35 лв."}},{"$f":"IFERROR(Маса_за_храна[[#This Row],[ЦЕНА НА ПОРЦИЯ]]*Маса_за_храна[[#This Row],[ПОРЦИЯ ЗА ВЪЗРАСТЕН]],\"\")","v":{"v":0.6944444444444444,"d":"0.69 лв."}},"Асорти"]
[null,"Общо",{"$f":"SUBTOTAL(109,Маса_за_храна[ОБЩА ЦЕНА])","v":{"v":475,"d":"475.00 лв."}},{"$f":"SUBTOTAL(109,Маса_за_храна[ПОРЦИЯ ЗА ДЕТЕ])","v":34.5},{"$f":"SUBTOTAL(109,Маса_за_храна[ПОРЦИЯ ЗА ВЪЗРАСТЕН])","v":65.5},{"$f":"SUBTOTAL(109,Маса_за_храна[ОБЩО ПОРЦИИ])","v":2393},{"$f":"SUBTOTAL(109,Маса_за_храна[ЦЕНА НА ПОРЦИЯ])","v":{"v":6.915706603622084,"d":"6.92 лв."}},{"$f":"SUBTOTAL(109,Маса_за_храна[ЦЕНА НА ДЕТЕ])","v":{"v":7.252884190656953,"d":"7.25 лв."}},{"$f":"SUBTOTAL(109,Маса_за_храна[ЦЕНА НА ВЪЗРАСТЕН])","v":{"v":12.690089084110037,"d":"12.69 лв."}}]

{"sheet":"Други основни неща","index":3,"n_rows":30,"n_cols":5,"rows_kept":30,"merged":[[14,1,14,4],[22,1,22,4]]}
[]
[]
[null,"Други основни неща"]
[]
[]
[null,"Прибори и продукти","Цена","Купени","Бележки"]
[null,"Наем на стая/зала",{"v":250,"d":"250.00 лв."},"Да"]
[null,"Покривки",{"v":30,"d":"30.00 лв."},"Да","Наем"]
[null,"Маси и столове",{"v":0,"d":"0.00 лв."},null,"Включено в наема на зала"]
[null,"Салфетки за напитки",{"v":25,"d":"25.00 лв."}]
[null,"Салфетки за ядене",{"v":20,"d":"20.00 лв."},null,"Наем"]
[null,"Обслужване на масите",{"v":50,"d":"50.00 лв."},null,"Наем"]
[null,"Чаши",{"v":25,"d":"25.00 лв."},null,"Наем"]
[null,"Общо",{"$f":"SUBTOTAL(109,Бюджет_маса1[Цена])","v":{"v":400,"d":"400.00 лв."}}]
[]
[]
[null,"Украса","Цена","Купени","Бележки"]
[null,"Балони",{"v":25,"d":"25.00 лв."}]
[null,"Резервоар с хелий",{"v":50,"d":"50.00 лв."},null,"Наем"]
[null,"Украшения на масите",{"v":100,"d":"100.00 лв."},"Да","Общо 10"]
[null,"Стъклени вази",{"v":0,"d":"0.00 лв."},null,"Назаем от Сенди"]
[null,"Общо",{"$f":"SUBTOTAL(109,Бюджет_маса2[Цена])","v":{"v":175,"d":"175.00 лв."}}]
[]
[]
[null,"Други","Цена","Купени","Бележки"]
[null,"Покани",{"v":50,"d":"50.00 лв."},"Да"]
[null,"Пощенски разходи",{"v":60,"d":"60.00 лв."},"Да"]
[null,"Фотограф",{"v":125,"d":"125.00 лв."},null,"2 часа (14:00 – 16:00)"]
[null,"Подаръци за спомен",{"v":50,"d":"50.00 лв."}]
[null,"Общо",{"$f":"SUBTOTAL(109,Бюджет_маса3[Цена])","v":{"v":285,"d":"285.00 лв."}}]

{"sheet":"Схема на сядане по масите","index":4,"n_rows":43,"n_cols":34,"rows_kept":43,"merged":[[35,0,35,17],[35,19,35,33]]}
["Схема на сядане"]
{"$rows_empty":33}
[{"$nulls":33},"*1 квадрат = прибл. 1 кв.фут"]
["Бележки",{"$nulls":18},{"$f":"\" Общо потвърдени гости: \"&Потвърдили_гости","v":" Общо потвърдени гости: 46"}]
[{"$nulls":19},"Можете да използвате всяко от следните подреждания на маси:"]
[{"$nulls":20},{"$f":"ROUNDUP(Потвърдили_гости/6,0)&\" кръгли маси 1,35 м (6 места)\"","v":"8 кръгли маси 1,35 м (6 места)"}]
[{"$nulls":20},{"$f":"ROUNDUP(Потвърдили_гости/8,0) &\" кръгли маси 1,50 м (8 места)\"","v":"6 кръгли маси 1,50 м (8 места)"}]
[{"$nulls":20},{"$f":"ROUNDUP(Потвърдили_гости/10,0)&\" кръгли маси 1,80 м (10 места)\"","v":"5 кръгли маси 1,80 м (10 места)"}]
[{"$nulls":20},{"$f":"ROUNDUP(Потвърдили_гости/6,0)& \" четириъгълни маси 0,75 м x 1,80 м (6 места)\"","v":"8 четириъгълни маси 0,75 м x 1,80 м (6 места)"}]
[{"$nulls":20},{"$f":"ROUNDUP(Потвърдили_гости/8,0)&\" четириъгълни маси 0,75 м x 2,45 м (8 места)\"","v":"6 четириъгълни маси 0,75 м x 2,45 м (8 места)"}]
[{"$nulls":19},"(Предпочитано място между таблиците: 1 метър)"]